bitfinex/quotes_SOLUSD_20260105
["timestamp","ask_amount","ask_price","bid_price","bid_amount"]
[1767602326202,0.68744766,135.2,135.18,61.8]
[1767602326991,2.81728074,135.21,135.18,61.8]
[1767602327808,0.68744766,135.21,135.18,61.8]
[1767602328010,5.50040042,135.2,135.18,62.47480972]
[1767602328231,0.68744766,135.2,135.18,61.8]
[1767602328531,2.81728074,135.2,135.18,61.8]
[1767602329728,2.12983308,135.19,135.16,0.67480972]
[1767602330715,8.08404332,135.2,135.16,0.67480972]
[1767602330894,5.50024923,135.19,135.16,8.07341966]
[1767602331096,0.68744766,135.2,135.16,8.07341966]
[1767602331408,5.49985094,135.19,135.16,8.07341966]
[1767602331607,2.81728074,135.2,135.16,8.07341966]
[1767602331919,5.49984179,135.19,135.16,8.07341966]
[1767602332125,2.81728074,135.2,135.16,8.07341966]
[1767602332518,4.02855734,135.2,135.16,8.07341966]
[1767602333220,0.68744766,135.2,135.16,8.07341966]
[1767602333420,4.02855734,135.2,135.16,8.07341966]
[1767602334123,0.68744766,135.2,135.17,0.65714954]
[1767602334324,4.02855734,135.2,135.17,0.65714954]
[1767602334531,4.02855734,135.2,135.17,62.45714954]
[1767602335437,0.68744766,135.2,135.17,62.45714954]
[1767602335610,4.02855734,135.2,135.17,62.45714954]
[1767602338514,4.02855734,135.2,135.17,61.8]
[1767602339133,0.68744766,135.2,135.17,61.8]
[1767602339334,4.02855734,135.2,135.17,61.8]
[1767602340528,4.02855734,135.2,135.16,8.05575948]
[1767602340727,0.68744766,135.2,135.16,8.05575948]
[1767602340931,4.02855734,135.2,135.16,8.05575948]
[1767602343142,4.02855734,135.2,135.17,0.67480972]
[1767602344838,0.68744766,135.2,135.17,0.67480972]
[1767602346232,0.68744766,135.2,135.17,62.47480972]
[1767602352142,4.02855734,135.2,135.17,62.47480972]
[1767602352646,0.68744766,135.2,135.17,69.872817]
[1767602352942,4.02855734,135.2,135.17,69.872817]
[1767602354542,0.72062797,135.19,135.17,61.8]
[1767602356552,0.72062797,135.19,135.17,61.075]
[1767602357748,0.72062797,135.19,135.17,60.19543769]
[1767602357749,0.69062798,135.19,135.17,60.19543769]
[1767602358534,3.34110968,135.2,135.17,60.88521859]
[1767602358852,7.39595472,135.21,135.17,60.88521859]
[1767602359148,10.7370644,135.21,135.17,60.88521859]
[1767602359725,11.32769238,135.21,135.17,60.88521859]
[1767602363551,11.32769238,135.21,135.18,0.6897809]
[1767602363854,11.32769238,135.21,135.18,60.88521859]
[1767602365150,5.52150715,135.2,135.18,60.88521859]
[1767602365354,11.32769238,135.21,135.18,60.88521859]
[1767602365555,5.52150715,135.2,135.18,60.88521859]
[1767602365747,11.32769238,135.21,135.18,60.88521859]
[1767602365948,5.52150822,135.2,135.18,60.88521859]
[1767602366137,11.32769238,135.21,135.18,60.88521859]
[1767602366337,5.52264838,135.2,135.18,60.88521859]
[1767602366537,11.32769238,135.21,135.18,60.88521859]
[1767602366837,5.52264838,135.2,135.18,60.88521859]
[1767602367037,11.32769238,135.21,135.18,60.88521859]
[1767602367237,5.52339171,135.2,135.18,60.88521859]
[1767602367437,11.32769238,135.21,135.18,60.88521859]
[1767602367639,5.52339171,135.2,135.18,60.88521859]
[1767602367864,11.32769238,135.21,135.18,60.88521859]
[1767602368050,5.52339171,135.2,135.18,60.88521859]
[1767602368249,11.32769238,135.21,135.18,60.88521859]
[1767602368448,5.52424053,135.2,135.18,60.88521859]
[1767602368750,0.59062798,135.21,135.18,60.88521859]
[1767602368948,5.52429599,135.2,135.18,60.88521859]
[1767602369258,3.34110968,135.2,135.18,60.88521859]
[1767602370938,3.34110968,135.2,135.13,0.71286278]
[1767602370939,0.10386711,135.18,135.13,0.71286278]
[1767602371164,3.34110968,135.14,135.11,0.71286278]
[1767602371361,3.34110968,135.12,135.11,0.71286278]
[1767602371543,0.5761707,135.14,135.11,0.71286278]
[1767602371862,3.34110968,135.12,135.08,7.40283051]
[1767602372060,3.31374072,135.12,135.09,7.4024535]
[1767602372561,3.31374072,135.12,135.08,7.40302043]
[1767602372765,0.71952375,135.13,135.08,7.40302043]
[1767602372945,3.34110968,135.12,135.08,7.40302043]
[1767602373263,4.06063343,135.13,135.08,7.40302043]
[1767602373569,3.34110968,135.12,135.08,7.40302043]
[1767602373747,3.34110968,135.12,135.09,0.71286278]
[1767602374454,3.34110968,135.12,135.1,0.71286278]
[1767602375266,8.11984327,135.13,135.1,0.71286278]
[1767602375452,3.34110968,135.12,135.1,0.71286278]
[1767602375842,3.34110968,135.11,135.09,0.71286278]
[1767602376854,3.34110968,135.1,135.09,13.24576773]
[1767602377155,8.12056302,135.11,135.09,13.24576773]
[1767602377156,4.06020946,135.11,135.09,13.24576773]
[1767602378163,3.34110968,135.11,135.09,13.24576773]
[1767602379574,4.06020946,135.1,135.07,14.05863051]
[1767602379752,3.34110968,135.09,135.07,14.05863051]
[1767602380370,0.71868425,135.08,135.07,13.34576773]
[1767602380557,4.01823702,135.1,135.07,14.05863051]
[1767602381151,4.01865675,135.08,135.07,0.1]
[1767602381350,0.31878995,135.08,135.07,0.1]
[1767602382976,7.72181038,135.08,135.07,1e-08]
[1767602383476,8.34775407,135.08,135.07,1e-08]
[1767602384654,0.099,135.07,135.04,0.81286278]
[1767602384974,3.34110968,135.07,135.04,0.81286278]
[1767602385876,8.02896412,135.08,135.04,0.81286278]
[1767602386377,11.3700738,135.08,135.04,0.81286278]
[1767602386875,22.18588238,135.11,135.06,0.71286278]
[1767602387080,22.18588238,135.11,135.07,0.71286278]
[1767602387580,21.55993869,135.11,135.08,0.71286278]
[1767602387759,7.4018209,135.11,135.08,0.71286278]
[1767602388164,7.5008209,135.11,135.08,0.71286278]
[1767602388357,8.02697976,135.12,135.08,0.71286278]
[1767602388574,8.02697976,135.12,135.09,0.71286278]
[1767602389572,11.36808944,135.12,135.09,0.71286278]
[1767602391181,0.099,135.11,135.08,0.71286278]
[1767602391554,3.96178393,135.1,135.06,0.72201541]
[1767602391749,3.34110968,135.09,135.06,13.96778314]
[1767602391969,3.34110968,135.09,135.05,0.72201541]
[1767602391970,3.34110968,135.08,135.05,0.72201541]
[1767602392278,3.34110968,135.07,135.05,0.72201541]
[1767602392977,10.74473103,135.07,135.05,0.72201541]
[1767602393690,10.74473103,135.07,135.04,0.82201541]
[1767602393849,10.8540607,135.07,135.04,0.82201541]
[1767602394051,3.34110968,135.06,135.04,0.82201541]
[1767602394468,9.54709534,135.06,135.04,0.82201541]
[1767602394989,9.54709534,135.06,135.04,0.1]
[1767602395477,9.65591005,135.07,135.04,0.82201541]
[1767602395883,2.14281175,135.06,135.04,0.1]
[1767602397092,9.65591005,135.07,135.04,0.82201541]
[1767602400784,7.5130983,135.07,135.04,0.82201541]
[1767602400973,2.14281175,135.06,135.04,0.1]
[1767602401312,2.75325962,135.06,135.04,0.1]
[1767602402185,10.15751499,135.06,135.04,0.1]
[1767602402576,2.75325962,135.06,135.04,0.1]
[1767602402982,2.14281175,135.06,135.04,0.1]
[1767602404186,7.40378663,135.07,135.04,0.75801069]
[1767602404390,9.54659838,135.07,135.04,0.75801069]
[1767602405000,14.15811779,135.15,135.04,0.75801069]
[1767602405001,2.76875544,135.11,135.07,0.65801069]
[1767602405194,8.0273771,135.11,135.07,0.65801069]
[1767602406512,8.02691822,135.12,135.08,2.80082244]
[1767602407009,7.40063443,135.13,135.1,0.65801069]
[1767602407186,7.49963443,135.13,135.1,0.65801069]
[1767602407893,9.64244618,135.13,135.1,0.65801069]
[1767602408093,11.94613901,135.14,135.11,0.65801069]
[1767602408519,11.94613901,135.14,135.12,0.65801069]
[1767602408690,11.94613901,135.14,135.12,0.59801069]
[1767602409213,11.94613901,135.14,135.12,0.53801069]
[1767602410423,9.7920827,135.14,135.1,2.14281175]
[1767602410625,8.12384318,135.14,135.13,2.14281175]
[1767602410826,0.66186346,135.16,135.13,2.14281175]
[1767602411226,0.66186346,135.16,135.12,0.65801069]
[1767602411405,0.66186346,135.16,135.12,2.80082244]
[1767602411908,0.66186346,135.16,135.12,10.20134686]
[1767602412108,0.66186346,135.16,135.13,0.65801069]
[1767602412722,8.06030915,135.17,135.13,0.65801069]
[1767602413820,14.16186346,135.19,135.15,0.65801069]
[1767602414129,0.66186346,135.18,135.15,2.80082244]
[1767602415102,0.66186346,135.18,135.15,2.14281175]
[1767602415306,0.66186346,135.18,135.13,0.65801069]
[1767602415307,0.66186346,135.17,135.13,0.65801069]
[1767602415509,0.66186346,135.17,135.13,2.80082244]
[1767602416220,0.66186346,135.17,135.13,0.65801069]
[1767602416829,0.66186346,135.16,135.13,0.65801069]
[1767602417939,0.66186346,135.14,135.13,12.52076773]
[1767602418230,2.80467521,135.14,135.1,13.01564188]
[1767602418406,2.70467521,135.15,135.11,0.65801069]
[1767602420132,0.56186346,135.15,135.11,0.65801069]
[1767602420327,2.70467521,135.15,135.11,0.65801069]
[1767602421816,10.10388588,135.15,135.11,0.65801069]
[1767602422412,10.10388588,135.15,135.11,13.01564188]
[1767602422928,2.14281175,135.14,135.11,13.01564188]
[1767602423537,0.56186346,135.15,135.11,20.41694857]
[1767602423718,2.70467521,135.15,135.11,13.01564188]
[1767602424110,2.24181175,135.14,135.11,12.35763119]
[1767602424452,0.55723482,135.13,135.11,12.35763119]
[1767602424941,2.70004657,135.13,135.11,12.35763119]
[1767602425737,2.14281175,135.12,135.07,20.9033826]
[1767602425936,2.14281175,135.11,135.07,20.9033826]
[1767602426124,13.5,135.16,135.09,2.80082244]
[1767602426125,2.14281175,135.14,135.09,2.80082244]
[1767602426439,20.89866449,135.16,135.11,7.40136763]
[1767602426635,2.14281175,135.15,135.11,61.8]
[1767602427025,2.14281175,135.15,135.11,62.45801069]
[1767602428418,2.14281175,135.15,135.11,69.85928612]
[1767602428620,7.39866449,135.16,135.11,69.85928612]
[1767602428838,2.14281175,135.15,135.11,69.85928612]
[1767602429235,2.14281175,135.15,135.12,0.65801069]
[1767602431551,2.14281175,135.14,135.11,62.46846894]
[1767602433546,2.14281175,135.15,135.11,69.86983138]
[1767602433731,9.54155728,135.16,135.12,0.66846894]
[1767602434343,9.54155728,135.16,135.12,62.46846894]
[1767602436345,2.14281175,135.15,135.12,62.46846894]
[1767602440228,9.54225512,135.15,135.12,61.8]
[1767602440950,2.14281175,135.15,135.12,61.8]
[1767602441352,2.14281175,135.16,135.13,0.66846894]
[1767602441550,7.39831587,135.17,135.13,0.66846894]
[1767602441850,9.54112762,135.17,135.13,0.66846894]
[1767602442843,7.39831587,135.17,135.13,0.66846894]
[1767602443056,9.54112762,135.17,135.13,0.66846894]
[1767602444158,2.14281175,135.16,135.13,0.66846894]
[1767602445851,2.14281175,135.16,135.13,62.46846894]
[1767602447466,2.14281175,135.16,135.14,0.66846894]
[1767602448478,2.14281175,135.17,135.14,0.66846894]
[1767602448667,5.50961063,135.16,135.14,0.66846894]
[1767602448860,2.14281175,135.17,135.14,0.66846894]
[1767602449161,5.50961063,135.16,135.14,0.66846894]
[1767602449463,7.65808244,135.15,135.13,61.8]
[1767602449760,2.14281175,135.14,135.13,61.8]
[1767602450263,2.14281175,135.15,135.13,61.8]
[1767602451868,2.14281175,135.14,135.11,22.9668751]
[1767602452468,7.39919177,135.15,135.11,22.9668751]
[1767602452660,7.66508798,135.14,135.11,22.9668751]
[1767602452861,2.14281175,135.14,135.11,22.9668751]
[1767602453663,2.14281175,135.14,135.11,22.26352281]
[1767602454573,3.34443742,135.14,135.11,22.26352281]
[1767602456177,3.34443742,135.14,135.11,22.9668751]
[1767602456779,3.34443742,135.13,135.11,22.26352281]
[1767602457165,3.34443742,135.13,135.11,22.9668751]
[1767602457681,7.39989203,135.14,135.11,22.9668751]
[1767602457857,8.86716548,135.13,135.11,22.9668751]
[1767602458059,3.34443742,135.13,135.11,22.9668751]
[1767602463893,3.34443742,135.14,135.11,22.9668751]
[1767602464086,5.52755429,135.13,135.11,22.9668751]
[1767602464290,24.2432,135.16,135.12,0.69693812]
[1767602464591,5.5276245,135.15,135.12,0.69693812]
[1767602464767,24.2432,135.16,135.12,0.69693812]
[1767602464768,5.5276245,135.14,135.12,0.69693812]
[1767602464967,4.8026245,135.13,135.11,22.26352281]
[1767602465193,24.40814491,135.16,135.11,22.26352281]
[1767602465704,24.40814491,135.16,135.12,0.69693812]
[1767602465912,20.89876258,135.16,135.12,0.69693812]
[1767602466201,18.49327151,135.19,135.15,0.69693812]
[1767602466202,0.65838897,135.19,135.15,0.69693812]
[1767602466369,8.05561622,135.19,135.15,0.69693812]
[1767602467678,11.40005364,135.19,135.15,0.69693812]
[1767602469197,8.05561622,135.19,135.15,0.69693812]
[1767602469390,11.40005364,135.19,135.15,0.69693812]
[1767602470625,10.90720396,135.18,135.15,0.69693812]
[1767602471085,3.51426743,135.16,135.14,22.26352281]
[1767602471286,3.34443742,135.15,135.13,0.69693812]
[1767602471587,3.51426743,135.16,135.13,0.69693812]
[1767602472292,3.34443742,135.16,135.13,0.69693812]
[1767602473222,11.40140526,135.17,135.13,0.69693812]
[1767602474903,3.99789195,135.15,135.12,22.26352281]
[1767602475897,3.99789195,135.15,135.12,22.96046093]
[1767602477821,0.65345453,135.15,135.12,22.96046093]
[1767602478505,11.39708241,135.15,135.12,22.96046093]
[1767602479621,0.16983001,135.14,135.12,22.26352281]
[1767602480509,0.16983001,135.14,135.12,21.60835282]
[1767602481395,10.81345789,135.15,135.12,21.60835282]
[1767602481594,5.52601456,135.14,135.12,21.60835282]
[1767602481794,10.81345789,135.15,135.12,21.60835282]
[1767602481994,5.52601456,135.14,135.12,21.60835282]
[1767602482196,10.81345789,135.15,135.12,21.60835282]
[1767602482403,5.52600325,135.14,135.12,21.60835282]
[1767602482603,10.81345789,135.15,135.12,21.60835282]
[1767602482897,5.52600218,135.14,135.12,21.60835282]
[1767602483096,5.52553754,135.13,135.12,21.60835282]
[1767602485156,16.34008618,135.13,135.1,0.69693812]
[1767602485435,3.41426743,135.11,135.07,62.49693812]
[1767602485745,3.41426743,135.11,135.07,0.69693812]
[1767602485746,8.86997496,135.1,135.07,0.69693812]
[1767602486041,5.52553754,135.09,135.07,0.69693812]
[1767602486219,3.34443742,135.1,135.07,0.69693812]
[1767602486414,5.52154041,135.09,135.07,0.69693812]
[1767602486614,3.34443742,135.1,135.07,0.69693812]
[1767602486814,5.52154419,135.09,135.07,0.69693812]
[1767602487018,3.34443742,135.1,135.05,0.69693812]
[1767602487019,3.34443742,135.08,135.05,0.69693812]
[1767602487239,3.34443742,135.07,135.05,0.69693812]
[1767602487539,3.34443742,135.06,135.04,0.79693812]
[1767602487717,13.5,135.09,135.04,0.79693812]
[1767602487718,3.34443742,135.05,135.04,0.79693812]
[1767602488041,3.34443742,135.05,135.04,0.1]
[1767602489113,3.34443742,135.05,135.04,0.03016999]
[1767602490226,3.41426743,135.06,135.04,0.03016999]
[1767602490650,3.34443742,135.06,135.04,0.03016999]
[1767602492554,3.34443742,135.05,135.04,0.03016999]
[1767602492863,7.40444957,135.06,135.04,0.03016999]
[1767602493049,10.74888699,135.06,135.04,0.03016999]
[1767602493236,3.34443742,135.05,135.04,0.03016999]
[1767602494643,18.50986025,135.07,135.04,0.03016999]
[1767602494969,3.34443742,135.05,135.04,0.03016999]
[1767602495333,3.34443742,135.06,135.04,0.03016999]
[1767602496358,10.74909697,135.06,135.04,0.03016999]
[1767602499536,10.74910235,135.05,135.04,0.03016999]
[1767602500664,10.7485541,135.06,135.04,0.03016999]
[1767602503657,3.34443742,135.05,135.04,0.03016999]
[1767602504250,10.7485541,135.06,135.04,0.03016999]
[1767602504454,10.7485541,135.06,135.04,0.701729]
[1767602504769,7.40411668,135.06,135.04,0.701729]
[1767602504957,7.40411668,135.06,135.04,0.03016999]
[1767602505572,10.7485541,135.06,135.04,0.03016999]
[1767602505753,7.40411668,135.06,135.04,0.03016999]
[1767602505955,10.7485541,135.06,135.04,0.03016999]
[1767602510785,10.7485541,135.06,135.04,0.701729]
[1767602511860,3.34443742,135.09,135.04,4.04616642]
[1767602512063,3.34443742,135.09,135.05,0.65260355]
[1767602512268,7.40151225,135.11,135.07,0.65260355]
[1767602512454,7.40151225,135.11,135.08,0.65260355]
[1767602512644,16.84443742,135.14,135.1,0.65260355]
[1767602512848,16.84443742,135.14,135.1,0.61994044]
[1767602513671,7.40028121,135.13,135.1,0.61994044]
[1767602514171,16.84443742,135.14,135.1,0.61994044]
[1767602514372,7.39992835,135.14,135.06,80.31029172]
[1767602514579,7.39992835,135.14,135.1,2.14025105]
[1767602514785,7.39992835,135.14,135.1,0.65260355]
[1767602515586,2.14025105,135.14,135.1,0.65260355]
[1767602515786,7.39918608,135.15,135.11,0.65260355]
[1767602515989,20.89883923,135.16,135.12,0.65260355]
[1767602516283,23.03909028,135.16,135.12,0.65260355]
[1767602519170,23.03909028,135.16,135.13,0.65260355]
[1767602519869,23.03909028,135.16,135.13,0.62513934]
[1767602520070,23.03909028,135.16,135.13,0.56526666]
[1767602520283,23.03909028,135.16,135.13,0.50526666]
[1767602520484,2.23925105,135.15,135.12,61.8]
[1767602520690,2.14025105,135.14,135.09,2.14025105]
[1767602520865,2.14025105,135.14,135.09,23.83115164]
[1767602521584,2.14025105,135.13,135.09,21.69090059]
[1767602521993,2.24005295,135.13,135.09,21.69090059]
[1767602522168,2.31864716,135.12,135.09,21.69090059]
[1767602522372,0.17839611,135.12,135.09,21.69090059]
[1767602522675,2.31864716,135.12,135.09,21.69090059]
[1767602522888,9.71976162,135.12,135.09,21.69090059]
[1767602523064,9.54136551,135.12,135.09,22.35191997]
[1767602523269,7.40111446,135.12,135.09,22.35191997]
[1767602523874,7.40048991,135.13,135.1,0.66101938]
[1767602525383,7.3997336,135.14,135.1,0.66101938]
[1767602526992,7.3997336,135.14,135.1,2.14025105]
[1767602527194,7.3997336,135.14,135.11,0.66101938]
[1767602529906,9.53998465,135.14,135.11,0.66101938]
[1767602532106,2.14025105,135.13,135.11,0.66101938]
[1767602532307,9.71917465,135.14,135.11,0.66101938]
[1767602538091,9.71998465,135.14,135.1,0.66101938]
[1767602538809,2.23925105,135.13,135.09,22.35191997]
[1767602539511,0.099,135.13,135.09,22.35191997]
[1767602539816,2.23925105,135.13,135.09,22.35191997]
[1767602540217,2.23925105,135.13,135.1,0.66101938]
[1767602542115,9.54107994,135.12,135.09,21.69090059]
[1767602542315,2.14025105,135.11,135.09,21.69090059]
[1767602542521,2.14025105,135.1,135.07,0.66101938]
[1767602542706,2.14025105,135.09,135.07,0.66101938]
[1767602544223,9.54299411,135.09,135.07,0.66101938]
[1767602544521,9.54299411,135.09,135.06,22.35191997]
[1767602544724,9.54299411,135.09,135.06,0.66101938]
[1767602546119,7.40274306,135.09,135.06,0.66101938]
[1767602546602,9.54299411,135.09,135.06,0.66101938]
[1767602547137,7.40274306,135.09,135.06,0.66101938]
[1767602547315,7.40213366,135.1,135.06,0.66101938]
[1767602547725,9.54238471,135.1,135.06,0.66101938]
[1767602547906,7.40137665,135.11,135.06,0.66101938]
[1767602548106,2.14025105,135.1,135.06,0.66101938]
[1767602550323,9.54249567,135.1,135.06,0.66101938]
[1767602552130,7.50037665,135.11,135.06,0.66101938]
[1767602552333,7.64393128,135.1,135.06,0.66101938]
[1767602552534,2.14025105,135.1,135.06,0.66101938]
[1767602553134,9.54250838,135.1,135.06,0.66101938]
[1767602554335,2.14025105,135.1,135.06,0.66101938]
[1767602555429,9.72168427,135.1,135.06,0.66101938]
[1767602555636,2.24005295,135.09,135.06,0.66101938]
[1767602558640,2.14025105,135.09,135.06,0.66101938]
[1767602560542,2.14025105,135.08,135.06,0.66101938]
[1767602561336,7.40137665,135.11,135.06,7.40407273]
[1767602561337,8.0598492,135.11,135.06,7.40407273]
[1767602561536,5.51529,135.15,135.08,2.14025105]
[1767602561537,2.7987236,135.13,135.08,2.14025105]
[1767602562238,2.7987236,135.13,135.07,2.14025105]
[1767602562846,10.19940819,135.13,135.07,7.40311793]
[1767602563047,10.19940819,135.13,135.07,9.54336898]
[1767602564352,0.65847255,135.13,135.09,2.14025105]
[1767602564645,0.65847255,135.13,135.08,9.54314624]
[1767602566541,0.65847255,135.13,135.08,31.23404683]
[1767602567857,0.65847255,135.13,135.09,2.14025105]
[1767602570257,9.54007184,135.14,135.09,2.14025105]
[1767602570450,10.19854439,135.14,135.09,2.14025105]
[1767602571953,10.19854439,135.14,135.09,23.83115164]
[1767602572454,8.05829334,135.14,135.09,23.83115164]
[1767602573654,5.5156767,135.13,135.09,23.83115164]
[1767602573961,5.5156767,135.12,135.09,23.83115164]
[1767602574162,7.40029676,135.13,135.09,23.83115164]
[1767602574361,5.51567407,135.12,135.09,23.83115164]
[1767602574539,0.67139852,135.12,135.09,23.83115164]
[1767602575755,0.67139852,135.12,135.09,21.69090059]
[1767602578662,0.67139852,135.12,135.09,25.03532974]
[1767602579461,0.67139852,135.12,135.09,21.69090059]
[1767602580361,0.67139852,135.11,135.09,21.69090059]
[1767602580659,0.67139852,135.1,135.09,20.96590059]
[1767602580857,0.67139852,135.1,135.06,21.63391096]
[1767602581552,8.07342465,135.1,135.06,21.63391096]
[1767602582349,0.67139852,135.1,135.06,29.03802265]
[1767602584577,0.67139852,135.1,135.06,21.63391096]
[1767602586574,8.07334946,135.1,135.06,21.63391096]
[1767602590990,0.67139852,135.1,135.06,21.63391096]
[1767602591792,0.72325872,135.08,135.06,20.96590059]
[1767602592576,0.72325872,135.08,135.05,0.66801037]
[1767602593101,0.72325872,135.08,135.05,21.63391096]
[1767602599302,42.51302259,135.15,135.05,21.63391096]
[1767602599303,0.72325872,135.1,135.06,0.66801037]
[1767602599592,0.72325872,135.12,135.08,3.34442915]
[1767602599771,0.72325872,135.12,135.05,8.14488273]
[1767602599772,5.52213556,135.11,135.07,3.34442915]
[1767602599975,0.72325872,135.11,135.08,0.66801037]
[1767602600175,0.72325872,135.11,135.07,0.66801037]
[1767602600176,6.24519968,135.1,135.07,0.66801037]
[1767602600388,0.72325872,135.1,135.07,0.66801037]
[1767602603399,4.06768787,135.1,135.07,0.66801037]
[1767602608804,5.52401228,135.09,135.07,0.66801037]
[1767602609002,4.06768787,135.1,135.07,0.66801037]
[1767602609311,5.52401337,135.09,135.07,0.66801037]
[1767602609497,4.06768787,135.1,135.07,0.66801037]
[1767602609809,5.52411694,135.09,135.07,0.66801037]
[1767602610003,4.06768787,135.1,135.07,0.66801037]
[1767602610004,4.06768787,135.1,135.07,21.63391096]
[1767602610312,5.52420008,135.09,135.07,21.63391096]
[1767602610513,4.06768787,135.1,135.07,21.63391096]
[1767602610809,5.52424538,135.09,135.07,21.63391096]
[1767602611011,4.06768787,135.1,135.07,21.63391096]
[1767602611211,5.52424538,135.09,135.07,21.63391096]
[1767602611416,0.71927931,135.08,135.07,20.96590059]
[1767602611595,9.55758992,135.08,135.07,19.4101799]
[1767602614322,6.21316077,135.08,135.07,19.4101799]
[1767602614517,9.55758992,135.08,135.07,19.4101799]
[1767602615518,8.8683106,135.08,135.07,19.4101799]
[1767602615933,8.8683106,135.08,135.06,0.65825836]
[1767602616129,11.33643105,135.09,135.06,0.65825836]
[1767602616417,5.52352186,135.08,135.06,0.65825836]
[1767602616615,11.33643105,135.09,135.06,0.65825836]
[1767602618826,5.52451785,135.08,135.06,0.65825836]
[1767602619016,3.93370847,135.09,135.06,0.65825836]
[1767602619212,5.52451894,135.08,135.06,0.65825836]
[1767602619416,0.58927932,135.09,135.06,0.65825836]
[1767602619623,5.52481579,135.08,135.06,0.65825836]
[1767602619830,7.99185819,135.09,135.06,0.65825836]
[1767602620031,5.52480775,135.08,135.06,0.65825836]
[1767602620329,11.33628734,135.09,135.06,0.65825836]
[1767602620512,5.52516006,135.08,135.06,0.65825836]
[1767602620714,7.99185819,135.09,135.06,0.65825836]
[1767602621036,5.52516006,135.08,135.06,0.65825836]
[1767602621336,11.33628734,135.09,135.06,0.65825836]
[1767602621535,5.52559302,135.08,135.06,0.65825836]
[1767602621716,11.33628734,135.09,135.06,0.65825836]
[1767602621918,5.52559724,135.08,135.06,0.65825836]
[1767602622119,11.33628734,135.09,135.06,0.65825836]
[1767602622323,5.52553649,135.08,135.06,0.65825836]
[1767602622541,11.33628734,135.09,135.06,0.65825836]
[1767602622716,5.52612472,135.08,135.06,0.65825836]
[1767602622916,11.33628734,135.09,135.06,0.65825836]
[1767602623217,5.52612369,135.08,135.06,0.65825836]
[1767602623416,11.33628734,135.09,135.06,0.65825836]
[1767602623616,5.52676631,135.08,135.06,0.65825836]
[1767602623825,11.33628734,135.09,135.06,0.65825836]
[1767602624037,5.52676631,135.08,135.06,0.65825836]
[1767602624224,11.33628734,135.09,135.06,0.65825836]
[1767602624426,5.52754587,135.08,135.06,0.65825836]
[1767602624739,11.33628734,135.09,135.06,0.65825836]
[1767602624939,5.52754696,135.08,135.06,0.65825836]
[1767602625137,11.33628734,135.09,135.06,0.65825836]
[1767602625334,5.52749397,135.08,135.06,0.65825836]
[1767602625641,11.33628734,135.09,135.06,0.65825836]
[1767602625824,5.52749311,135.08,135.06,0.65825836]
[1767602626030,0.099,135.08,135.06,0.65825836]
[1767602626331,0.099,135.08,135.05,0.65825836]
[1767602627640,11.33629047,135.09,135.05,20.06843826]
[1767602627842,5.52749228,135.08,135.05,20.06843826]
[1767602628046,11.33629047,135.09,135.05,20.06843826]
[1767602628238,5.62649337,135.08,135.05,20.06843826]
[1767602628541,0.58927932,135.09,135.06,0.65825836]
[1767602628845,5.52743299,135.08,135.06,0.65825836]
[1767602629037,3.93370847,135.09,135.06,0.65825836]
[1767602629238,5.5274319,135.08,135.06,0.65825836]
[1767602629441,3.93370847,135.09,135.06,0.65825836]
[1767602629638,5.52738133,135.08,135.06,0.65825836]
[1767602629945,3.93370847,135.09,135.06,0.65825836]
[1767602630244,5.52738133,135.08,135.06,0.65825836]
[1767602630445,3.93370847,135.09,135.06,0.65825836]
[1767602630646,5.52734587,135.08,135.06,0.65825836]
[1767602630840,3.93370847,135.09,135.06,0.65825836]
[1767602631042,5.52734587,135.08,135.06,0.65825836]
[1767602631234,11.3362043,135.09,135.06,0.65825836]
[1767602631435,5.52732083,135.08,135.06,0.65825836]
[1767602631635,11.3362043,135.09,135.06,0.65825836]
[1767602631834,5.52732083,135.08,135.06,0.65825836]
[1767602632034,11.3362043,135.09,135.06,0.65825836]
[1767602632236,5.52732083,135.08,135.06,0.65825836]
[1767602632442,11.3362043,135.09,135.06,0.65825836]
[1767602632635,5.52730861,135.08,135.06,0.65825836]
[1767602632845,11.3362043,135.09,135.06,0.65825836]
[1767602633046,5.5273097,135.08,135.06,0.65825836]
[1767602633246,11.3362043,135.09,135.06,0.65825836]
[1767602633448,5.52731001,135.08,135.06,0.65825836]
[1767602633752,11.3362043,135.09,135.06,0.65825836]
[1767602633958,5.52730892,135.08,135.06,0.65825836]
[1767602634153,11.3362043,135.09,135.06,0.65825836]
[1767602634457,5.527323,135.08,135.06,0.65825836]
[1767602634658,11.3362043,135.09,135.06,0.65825836]
[1767602634850,5.5273219,135.08,135.06,0.65825836]
[1767602635053,11.3362043,135.09,135.06,0.65825836]
[1767602635244,5.52732881,135.08,135.06,0.65825836]
[1767602635544,11.3362043,135.09,135.06,0.65825836]
[1767602635744,5.52735446,135.08,135.06,0.65825836]
[1767602636042,11.3362043,135.09,135.06,0.65825836]
[1767602636245,5.52735555,135.08,135.06,0.65825836]
[1767602636444,11.3362043,135.09,135.06,0.65825836]
[1767602636645,5.52739687,135.08,135.06,0.65825836]
[1767602636861,7.99177515,135.09,135.06,0.65825836]
[1767602637052,5.52739687,135.08,135.06,0.65825836]
[1767602637252,11.3362043,135.09,135.06,0.65825836]
[1767602637459,5.5273486,135.08,135.06,0.65825836]